fUSD/lending_fUSD_20241225
["ID","MTS","AMOUNT","RATE_DAILY","PERIOD"]
[346588698,1735119042950,-869.03,9.781e-05,2]
[346588699,1735119042960,-500.0,9.781e-05,2]
[346588700,1735119042969,-543.39,9.781e-05,2]
[346588701,1735119042978,-906.27,9.781e-05,2]
[346588702,1735119042987,-500.0,9.781e-05,2]
[346588703,1735119042997,-500.0,9.781e-05,2]
[346588704,1735119043006,-754.67,9.781e-05,2]
[346588705,1735119043015,-500.0,9.781e-05,2]
[346588706,1735119043024,-500.0,9.781e-05,2]
[346588707,1735119043034,-500.0,9.781e-05,2]
[346588708,1735119043043,-500.0,9.781e-05,2]
[346588709,1735119043054,-500.0,9.781e-05,2]
[346588710,1735119043063,-500.0,9.781e-05,2]
[346588711,1735119043072,-500.0,9.781e-05,2]
[346588712,1735119043082,-679.84,9.781e-05,2]
[346588713,1735119043092,-500.0,9.781e-05,2]
[346588714,1735119043101,-500.0,9.781e-05,2]
[346588715,1735119043112,-500.0,9.781e-05,2]
[346588716,1735119043122,-1078.87,9.781e-05,2]
[346588717,1735119043131,-500.0,9.781e-05,2]
[346588718,1735119043140,-741.14,9.781e-05,2]
[346588720,1735119043150,-755.21,9.781e-05,2]
[346588721,1735119043159,-655.07,9.781e-05,2]
[346588723,1735119043170,-626.2,9.781e-05,2]
[346588725,1735119043179,-500.0,9.781e-05,2]
[346588726,1735119043188,-500.0,9.781e-05,2]
[346588727,1735119043198,-680.66,9.781e-05,2]
[346588728,1735119043207,-691.62,9.781e-05,2]
[346588729,1735119043216,-500.0,9.781e-05,2]
[346588730,1735119043226,-500.0,9.781e-05,2]
[346588731,1735119043235,-500.0,9.781e-05,2]
[346588732,1735119043244,-639.37,9.781e-05,2]
[346588733,1735119043254,-500.0,9.781e-05,2]
[346588734,1735119043263,-500.0,9.781e-05,2]
[346588735,1735119043273,-1178.61,9.781e-05,2]
[346588736,1735119043282,-500.0,9.781e-05,2]
[346588737,1735119043292,-501.56525447,9.781e-05,2]
[346588738,1735119043301,-1078.22,9.781e-05,2]
[346588739,1735119043311,-500.0,9.781e-05,2]
[346588740,1735119043320,-500.0,9.781e-05,2]
[346588741,1735119043329,-500.0,9.781e-05,2]
[346588742,1735119043339,-507.55,9.781e-05,2]
[346588743,1735119043348,-500.0,9.781e-05,2]
[346588744,1735119043357,-500.0,9.781e-05,2]
[346588745,1735119043367,-500.0,9.781e-05,2]
[346588747,1735119043376,-501.62,9.781e-05,2]
[346588748,1735119043386,-509.51267259,9.781e-05,2]
[346588750,1735119043395,-836.06,9.781e-05,2]
[346588751,1735119043405,-352.81924429,9.781e-05,2]
[346588752,1735119043415,-500.0,9.781e-05,2]
[346588753,1735119043424,-500.0,9.781e-05,2]
[346588754,1735119043434,-597.65,9.781e-05,2]
[346588755,1735119043444,-505.88,9.781e-05,2]
[346588756,1735119043453,-500.0,9.781e-05,2]
[346588757,1735119043463,-611.76,9.781e-05,2]
[346588758,1735119043473,-950.65,9.781e-05,2]
[346588759,1735119043483,-500.0,9.781e-05,2]
[346588760,1735119043492,-546.93,9.781e-05,2]
[346588761,1735119043502,-500.0,9.781e-05,2]
[346588762,1735119043511,-500.0,9.781e-05,2]
[346588763,1735119043520,-1276.76,9.781e-05,2]
[346588764,1735119043535,-500.0,9.781e-05,2]
[346588765,1735119043545,-500.0,9.781e-05,2]
[346588766,1735119043554,-500.0,9.781e-05,2]
[346588767,1735119043563,-500.0,9.781e-05,2]
[346588768,1735119043573,-500.0,9.781e-05,2]
[346588769,1735119043583,-510.61,9.781e-05,2]
[346588770,1735119043592,-500.0,9.781e-05,2]
[346588771,1735119043601,-500.0,9.781e-05,2]
[346588772,1735119043610,-500.0,9.781e-05,2]
[346588773,1735119043620,-509.18011517,9.781e-05,2]
[346588774,1735119043630,-500.0,9.781e-05,2]
[346588775,1735119043639,-500.0,9.781e-05,2]
[346588776,1735119043649,-500.0,9.781e-05,2]
[346588777,1735119043659,-500.0,9.781e-05,2]
[346588778,1735119043670,-500.0,9.781e-05,2]
[346588779,1735119043679,-500.0,9.781e-05,2]
[346588780,1735119043689,-500.0,9.781e-05,2]
[346588781,1735119043699,-166.75383285,9.781e-05,2]
[346588782,1735119043708,-1294.94,9.781e-05,2]
[346588783,1735119043718,-500.0,9.781e-05,2]
[346588784,1735119043727,-500.0,9.781e-05,2]
[346588785,1735119043737,-500.0,9.781e-05,2]
[346588786,1735119043747,-500.0,9.781e-05,2]
[346588787,1735119043758,-500.0,9.781e-05,2]
[346588788,1735119043767,-500.0,9.781e-05,2]
[346588789,1735119043777,-500.0,9.781e-05,2]
[346588790,1735119043787,-1618.65,9.781e-05,2]
[346588791,1735119043796,-500.0,9.781e-05,2]
[346588792,1735119043806,-500.0,9.781e-05,2]
[346588793,1735119043816,-500.0,9.781e-05,2]
[346588794,1735119043826,-500.0,9.781e-05,2]
[346588795,1735119043835,-500.0,9.781e-05,2]
[346588796,1735119043845,-500.0,9.781e-05,2]
[346588797,1735119043855,-1235.52,9.781e-05,2]
[346588798,1735119043864,-500.0,9.781e-05,2]
[346588799,1735119043874,-970.05,9.781e-05,2]
[346588800,1735119043883,-730.48,9.781e-05,2]
[346588801,1735119043893,-500.0,9.781e-05,2]
[346588802,1735119043902,-500.0,9.781e-05,2]
[346588803,1735119043913,-925.16,9.781e-05,2]
[346588804,1735119043922,-3620.34,9.781e-05,2]
[346588805,1735119043932,-500.0,9.781e-05,2]
[346588806,1735119043942,-948.61,9.781e-05,2]
[346588807,1735119043951,-500.0,9.781e-05,2]
[346588808,1735119043961,-3835.78,9.781e-05,2]
[346588809,1735119043970,-500.0,9.781e-05,2]
[346588810,1735119043980,-500.0,9.781e-05,2]
[346588811,1735119043990,-1783.27,9.781e-05,2]
[346588812,1735119044000,-500.0,9.781e-05,2]
[346588813,1735119044010,-3329.11,9.781e-05,2]
[346588814,1735119044020,-871.15,9.781e-05,2]
[346588816,1735119044030,-590.68,9.781e-05,2]
[346588818,1735119044040,-500.0,9.781e-05,2]
[346588820,1735119044050,-929.23,9.781e-05,2]
[346588822,1735119044060,-2753.35,9.781e-05,2]
[346588823,1735119044069,-500.0,9.781e-05,2]
[346588824,1735119044079,-500.0,9.781e-05,2]
[346588825,1735119044089,-1454.03,9.781e-05,2]
[346588826,1735119044098,-500.0,9.781e-05,2]
[346588827,1735119044108,-1461.81,9.781e-05,2]
[346588828,1735119044117,-4139.48,9.781e-05,2]
[346588829,1735119044127,-500.0,9.781e-05,2]
[346588830,1735119044136,-528.52295594,9.781e-05,2]
[346588831,1735119044146,-500.0,9.781e-05,2]
[346588832,1735119044156,-4891.62,9.781e-05,2]
[346588833,1735119044166,-549.34,9.781e-05,2]
[346588834,1735119044176,-500.0,9.781e-05,2]
[346588835,1735119044185,-500.0,9.781e-05,2]
[346588836,1735119044194,-1583.46,9.781e-05,2]
[346588837,1735119044204,-3194.84,9.781e-05,2]
[346588838,1735119044213,-500.0,9.781e-05,2]
[346588839,1735119044223,-7489.1,9.781e-05,2]
[346588840,1735119044232,-500.0,9.781e-05,2]
[346588841,1735119044242,-1179.18,9.781e-05,2]
[346588842,1735119044252,-9511.85,9.781e-05,2]
[346588843,1735119044262,-500.0,9.781e-05,2]
[346588844,1735119044272,-500.0,9.781e-05,2]
[346588845,1735119044282,-55538.26,9.781e-05,2]
[346588846,1735119044292,-500.0,9.781e-05,2]
[346588847,1735119044302,-500.0,9.781e-05,2]
[346588848,1735119044311,-2019.19,9.781e-05,2]
[346588849,1735119044321,-692.57,9.781e-05,2]
[346588850,1735119044330,-1160.53,9.781e-05,2]
[346588851,1735119044340,-7799.83,9.781e-05,2]
[346588852,1735119044349,-500.0,9.781e-05,2]
[346588853,1735119044359,-555.32,9.781e-05,2]
[346588854,1735119044368,-500.0,9.781e-05,2]
[346588855,1735119044378,-4248.16,9.781e-05,2]
[346588856,1735119044389,-979.34,9.781e-05,2]
[346588857,1735119044398,-500.0,9.781e-05,2]
[346588858,1735119044408,-500.0,9.781e-05,2]
[346588859,1735119044419,-540.17,9.781e-05,2]
[346588860,1735119044430,-500.0,9.781e-05,2]
[346588861,1735119044439,-1547.98,9.781e-05,2]
[346588862,1735119044448,-500.0,9.781e-05,2]
[346588863,1735119044458,-338.7231227,9.781e-05,2]
[346588864,1735119044467,-648.08,9.781e-05,2]
[346588865,1735119044477,-870.49,9.781e-05,2]
[346588866,1735119044486,-5723.55,9.781e-05,2]
[346588867,1735119044495,-500.0,9.781e-05,2]
[346588868,1735119044505,-500.0,9.781e-05,2]
[346588869,1735119044514,-47236.86,9.781e-05,2]
[346588870,1735119044523,-762.55,9.781e-05,2]
[346588871,1735119044536,-500.0,9.781e-05,2]
[346588872,1735119044545,-197.95981499,9.781e-05,2]
[346588873,1735119044555,-1434.88,9.781e-05,2]
[346588874,1735119044564,-602.99472569,9.781e-05,2]
[346588875,1735119044574,-558.57,9.781e-05,2]
[346588876,1735119044584,-1663.35,9.781e-05,2]
[346588877,1735119044593,-765.93,9.781e-05,2]
[346588878,1735119044604,-1614.61,9.781e-05,2]
[346588879,1735119044613,-500.0,9.781e-05,2]
[346588880,1735119044623,-400.59817617,9.781e-05,2]
[346588881,1735119044636,-4524.85,9.781e-05,2]
[346588882,1735119044646,-500.0,9.781e-05,2]
[346588883,1735119044655,-500.0,9.781e-05,2]
[346588884,1735119044665,-500.0,9.781e-05,2]
[346588885,1735119044674,-2566.91,9.781e-05,2]
[346588886,1735119044684,-500.0,9.781e-05,2]
[346588887,1735119044694,-670.82,9.781e-05,2]
[346588888,1735119044703,-500.0,9.781e-05,2]
[346588889,1735119044712,-9421.95,9.781e-05,2]
[346588890,1735119044722,-1678.97,9.781e-05,2]
[346588891,1735119044731,-500.0,9.781e-05,2]
[346588892,1735119044741,-1688.09,9.781e-05,2]
[346588893,1735119044750,-500.0,9.781e-05,2]
[346588894,1735119044759,-707.69,9.781e-05,2]
[346588895,1735119044769,-500.0,9.781e-05,2]
[346588896,1735119044778,-1358.83,9.781e-05,2]
[346588897,1735119044787,-500.0,9.781e-05,2]
[346588898,1735119044796,-2703.04,9.781e-05,2]
[346588899,1735119044806,-784.27,9.781e-05,2]
[346588900,1735119044815,-500.0,9.781e-05,2]
[346588901,1735119044824,-833.73,9.781e-05,2]
[346588902,1735119044834,-500.0,9.781e-05,2]
[346588903,1735119044843,-3113.52,9.781e-05,2]
[346588904,1735119044852,-500.0,9.781e-05,2]
[346588905,1735119044861,-150.854693,9.782e-05,2]
[346588906,1735119044871,-503.81018042,9.782e-05,2]
[346588907,1735119044880,-1461.81,9.782e-05,2]
[346588908,1735119044890,-531.76214175,9.783e-05,2]
[346588909,1735119044899,-523.14039796,9.783e-05,2]
[346588910,1735119044909,-500.0,9.783e-05,2]
[346588911,1735119044921,-500.0,9.783e-05,2]
[346588912,1735119044930,-500.0,9.783e-05,2]
[346588913,1735119044940,-500.0,9.783e-05,2]
[346588914,1735119044950,-500.0,9.783e-05,2]
[346588915,1735119044959,-500.0,9.783e-05,2]
[346588916,1735119044969,-500.0,9.783e-05,2]
[346588917,1735119044978,-393.61366622,9.783e-05,2]
[346588918,1735119044988,-505.84170742,9.783e-05,2]
[346588919,1735119044998,-236.11337242,9.783e-05,2]
[346588920,1735119045007,-310.41968914,9.783e-05,2]
[346588921,1735119045017,-500.0,9.783e-05,2]
[346588922,1735119045026,-500.0,9.783e-05,2]
[346588923,1735119045035,-500.0,9.783e-05,2]
[346588924,1735119045045,-443.38553994,9.783e-05,2]
[346588925,1735119045055,-500.0,9.783e-05,2]
[346588926,1735119045064,-500.0,9.783e-05,2]
[346588927,1735119045073,-500.0,9.783e-05,2]
[346588928,1735119045083,-300.0,9.783e-05,2]
[346588929,1735119045092,-500.0,9.783e-05,2]
[346588930,1735119045101,-193.60508218,9.783e-05,2]
[346588931,1735119045111,-500.0,9.783e-05,2]
[346588932,1735119045120,-500.0,9.783e-05,2]
[346588933,1735119045129,-500.0,9.783e-05,2]
[346588934,1735119045138,-425.60128493,9.783e-05,2]
[346588935,1735119045147,-500.0,9.783e-05,2]
[346588936,1735119045156,-500.0,9.783e-05,2]
[346588937,1735119045167,-500.0,9.783e-05,2]
[346588938,1735119045176,-593.86537511,9.783e-05,2]
[346588939,1735119045186,-504.01434498,9.783e-05,2]
[346588940,1735119045196,-500.0,9.783e-05,2]
[346588941,1735119045205,-500.0,9.783e-05,2]
[346588942,1735119045215,-500.0,9.783e-05,2]
[346588943,1735119045225,-523.05206031,9.783e-05,2]
[346588944,1735119045235,-500.0,9.783e-05,2]
[346588945,1735119045244,-612.86,9.783e-05,2]
[346588946,1735119045253,-500.68683918,9.783e-05,2]
[346588947,1735119045263,-451.28624216,9.783e-05,2]
[346588948,1735119045272,-500.0,9.783e-05,2]
[346588949,1735119045281,-500.0,9.783e-05,2]
[346588950,1735119045290,-500.0,9.783e-05,2]
[346588951,1735119045300,-500.0,9.783e-05,2]
[346588952,1735119045309,-507.7906562,9.783e-05,2]
[346588953,1735119045318,-500.0,9.783e-05,2]
[346588954,1735119045327,-500.0,9.783e-05,2]
[346588955,1735119045336,-500.0,9.783e-05,2]
[346588956,1735119045346,-500.0,9.783e-05,2]
[346588957,1735119045355,-500.0,9.783e-05,2]
[346588958,1735119045364,-500.0,9.783e-05,2]
[346588959,1735119045373,-500.0,9.783e-05,2]
[346588960,1735119045553,-500.0,9.783e-05,2]
[346588961,1735119045563,-500.0,9.783e-05,2]
[346588962,1735119045575,-500.0,9.783e-05,2]
[346588963,1735119045585,-500.0,9.783e-05,2]
[346588964,1735119045595,-500.24,9.783e-05,2]
[346588965,1735119045604,-500.0,9.783e-05,2]
[346588966,1735119045615,-1064.02,9.783e-05,2]
[346588967,1735119045625,-500.0,9.783e-05,2]
[346588968,1735119045635,-1671.46,9.783e-05,2]
[346588969,1735119045646,-500.0,9.783e-05,2]
[346588970,1735119045656,-500.0,9.783e-05,2]
[346588971,1735119045665,-500.0,9.783e-05,2]
[346588972,1735119045674,-501.81174299,9.783e-05,2]
[346588973,1735119045683,-500.0,9.783e-05,2]
[346588974,1735119045693,-500.0,9.783e-05,2]
[346588975,1735119045702,-500.0,9.783e-05,2]
[346588976,1735119045711,-476.6460605,9.783e-05,2]
[346588977,1735119045721,-644.27,9.783e-05,2]
[346588978,1735119045731,-1073.67,9.783e-05,2]
[346588979,1735119045741,-500.0,9.783e-05,2]
[346588980,1735119045750,-500.0,9.783e-05,2]
[346588981,1735119045759,-500.0,9.783e-05,2]
[346588982,1735119045770,-655.9,9.783e-05,2]
[346588983,1735119045779,-885.03,9.783e-05,2]
[346588984,1735119045788,-500.0,9.783e-05,2]
[346588985,1735119045798,-500.0,9.783e-05,2]
[346588986,1735119045808,-581.6,9.783e-05,2]
[346588987,1735119045817,-500.0,9.783e-05,2]
[346588988,1735119045827,-500.0,9.783e-05,2]
[346588989,1735119045837,-500.0,9.783e-05,2]
[346588990,1735119045846,-500.0,9.783e-05,2]
[346588991,1735119045855,-500.0,9.783e-05,2]
[346588992,1735119045864,-500.0,9.783e-05,2]
[346588993,1735119045873,-500.0,9.783e-05,2]
[346588994,1735119045883,-500.0,9.783e-05,2]
[346588995,1735119045892,-500.0,9.783e-05,2]
[346588996,1735119045902,-500.0,9.783e-05,2]
[346588997,1735119045911,-500.0,9.783e-05,2]
[346588998,1735119045921,-654.69,9.783e-05,2]
[346588999,1735119045930,-500.0,9.783e-05,2]
[346589000,1735119045940,-500.0,9.783e-05,2]
[346589001,1735119045950,-500.0,9.783e-05,2]
[346589002,1735119045959,-500.0,9.783e-05,2]
[346589003,1735119045968,-1152.03,9.783e-05,2]
[346589004,1735119045978,-705.29,9.783e-05,2]
[346589005,1735119045987,-500.0,9.783e-05,2]
[346589006,1735119045997,-502.05290556,9.783e-05,2]
[346589007,1735119046006,-500.0,9.783e-05,2]
[346589008,1735119046015,-719.02,9.783e-05,2]
[346589009,1735119046024,-500.0,9.783e-05,2]
[346589010,1735119046033,-500.0,9.783e-05,2]
[346589011,1735119046043,-500.0,9.783e-05,2]
[346589012,1735119046052,-500.0,9.783e-05,2]
[346589013,1735119046061,-500.0,9.783e-05,2]
[346589014,1735119046071,-862.38,9.783e-05,2]
[346589015,1735119046080,-1791.22,9.783e-05,2]
[346589016,1735119046089,-500.0,9.783e-05,2]
[346589017,1735119046098,-500.0,9.783e-05,2]
[346589018,1735119046108,-500.0,9.783e-05,2]
[346589019,1735119046117,-500.0,9.783e-05,2]
[346589020,1735119046126,-500.0,9.783e-05,2]
[346589021,1735119046135,-500.0,9.783e-05,2]
[346589022,1735119046144,-500.0,9.783e-05,2]
[346589023,1735119046153,-501.79432819,9.783e-05,2]
[346589024,1735119046162,-500.0,9.783e-05,2]
[346589025,1735119046172,-518.76,9.783e-05,2]
[346589026,1735119046182,-500.0,9.783e-05,2]
[346589027,1735119046191,-500.0,9.783e-05,2]
[346589028,1735119046200,-500.0,9.783e-05,2]
[346589029,1735119046210,-500.0,9.783e-05,2]
[346589030,1735119046219,-500.0,9.783e-05,2]
[346589031,1735119046229,-500.0,9.783e-05,2]
[346589032,1735119046238,-500.0,9.783e-05,2]
[346589033,1735119046247,-349.15368882,9.783e-05,2]
[346589034,1735119046256,-500.0,9.783e-05,2]
[346589035,1735119046266,-500.0,9.783e-05,2]
[346589036,1735119046275,-1678.41,9.783e-05,2]
[346589037,1735119046284,-500.0,9.783e-05,2]
[346589038,1735119046294,-500.0,9.783e-05,2]
[346589039,1735119046303,-500.0,9.783e-05,2]
[346589040,1735119046312,-500.0,9.783e-05,2]
[346589041,1735119046322,-500.0,9.783e-05,2]
[346589042,1735119046331,-785.65,9.783e-05,2]
[346589043,1735119046340,-500.0,9.783e-05,2]
[346589044,1735119046350,-500.0,9.783e-05,2]
[346589045,1735119046359,-500.0,9.783e-05,2]
[346589046,1735119046368,-500.0,9.783e-05,2]
[346589047,1735119046377,-504.06353067,9.783e-05,2]
[346589048,1735119046386,-500.0,9.783e-05,2]
[346589049,1735119046396,-1614.7,9.783e-05,2]
[346589050,1735119046405,-500.0,9.783e-05,2]
[346589051,1735119046414,-500.0,9.783e-05,2]
[346589052,1735119046424,-500.0,9.783e-05,2]
[346589053,1735119046433,-1788.99,9.783e-05,2]
[346589054,1735119046443,-500.0,9.783e-05,2]
[346589055,1735119046452,-500.0,9.783e-05,2]
[346589056,1735119046461,-500.0,9.783e-05,2]
[346589057,1735119046471,-500.0,9.783e-05,2]
[346589058,1735119046480,-500.0,9.783e-05,2]
[346589059,1735119046489,-500.0,9.783e-05,2]
[346589060,1735119046498,-714.55,9.783e-05,2]
[346589061,1735119046508,-500.0,9.783e-05,2]
[346589062,1735119046518,-500.0,9.783e-05,2]
[346589063,1735119046529,-500.0,9.783e-05,2]
[346589064,1735119046540,-500.0,9.783e-05,2]
[346589065,1735119046549,-500.0,9.783e-05,2]
[346589066,1735119046558,-903.64,9.783e-05,2]
[346589067,1735119046568,-500.0,9.783e-05,2]
[346589068,1735119046579,-500.0,9.783e-05,2]
[346589069,1735119046588,-1815.38,9.783e-05,2]
[346589070,1735119046597,-500.0,9.783e-05,2]
[346589071,1735119046607,-1063.54,9.783e-05,2]
[346589072,1735119046616,-500.0,9.783e-05,2]
[346589073,1735119046626,-500.0,9.783e-05,2]
[346589074,1735119046635,-500.0,9.783e-05,2]
[346589075,1735119046644,-500.0,9.783e-05,2]
[346589076,1735119046653,-1722.79,9.783e-05,2]
[346589077,1735119046663,-1888.16,9.783e-05,2]
[346589078,1735119046673,-500.0,9.783e-05,2]
[346589079,1735119046685,-500.0,9.783e-05,2]
[346589080,1735119046695,-500.0,9.783e-05,2]
[346589082,1735119046704,-500.0,9.783e-05,2]
[346589084,1735119046713,-1783.24,9.783e-05,2]
[346589086,1735119046722,-500.0,9.783e-05,2]
[346589087,1735119046731,-500.0,9.783e-05,2]
[346589088,1735119046740,-513.66,9.783e-05,2]
[346589089,1735119046749,-500.0,9.783e-05,2]
[346589090,1735119046760,-500.0,9.783e-05,2]
[346589091,1735119046769,-1226.92,9.783e-05,2]
[346589092,1735119046778,-2545.91,9.783e-05,2]
[346589093,1735119046787,-500.0,9.783e-05,2]
[346589094,1735119046796,-2085.4,9.783e-05,2]
[346589095,1735119046806,-1922.06,9.783e-05,2]
[346589096,1735119046815,-791.8,9.783e-05,2]
[346589097,1735119046824,-1663.23,9.783e-05,2]
[346589098,1735119046833,-500.0,9.783e-05,2]
[346589099,1735119046843,-813.99,9.783e-05,2]
[346589100,1735119046851,-500.0,9.783e-05,2]
[346589101,1735119046860,-500.0,9.783e-05,2]
[346589102,1735119046869,-1581.12,9.783e-05,2]
[346589103,1735119046878,-1615.54,9.783e-05,2]
[346589104,1735119046888,-500.0,9.783e-05,2]
[346589105,1735119046897,-759.32,9.783e-05,2]
[346589106,1735119046906,-500.0,9.783e-05,2]
[346589107,1735119046916,-898.38,9.783e-05,2]
[346589108,1735119046925,-505.72469428,9.783e-05,2]
[346589109,1735119046935,-2560.94,9.783e-05,2]
[346589110,1735119046944,-500.0,9.783e-05,2]
[346589111,1735119046953,-846.87,9.783e-05,2]
[346589112,1735119046962,-500.0,9.783e-05,2]
[346589113,1735119046972,-500.0,9.783e-05,2]
[346589114,1735119046982,-500.0,9.783e-05,2]
[346589115,1735119046992,-552.05,9.783e-05,2]
[346589116,1735119047001,-2094.14,9.783e-05,2]
[346589117,1735119047010,-568.1,9.783e-05,2]
[346589118,1735119047019,-500.0,9.783e-05,2]
[346589119,1735119047028,-777.16,9.783e-05,2]
[346589120,1735119047037,-1584.1,9.783e-05,2]
[346589121,1735119047046,-1487.41,9.783e-05,2]
[346589122,1735119047055,-1870.63,9.783e-05,2]
[346589123,1735119047064,-500.0,9.783e-05,2]
[346589124,1735119047073,-590.38,9.783e-05,2]
[346589125,1735119047083,-500.0,9.783e-05,2]
[346589126,1735119047093,-513.30893444,9.783e-05,2]
[346589127,1735119047103,-500.0,9.783e-05,2]
[346589128,1735119047113,-500.0,9.783e-05,2]
[346589129,1735119047122,-2435.68,9.783e-05,2]
[346589130,1735119047132,-519.08,9.783e-05,2]
[346589131,1735119047141,-1009.07,9.783e-05,2]
[346589132,1735119047150,-1337.16,9.783e-05,2]
[346589133,1735119047159,-500.0,9.783e-05,2]
[346589134,1735119047169,-500.0,9.783e-05,2]
[346589135,1735119047178,-500.0,9.783e-05,2]
[346589136,1735119047187,-500.0,9.783e-05,2]
[346589137,1735119047196,-2741.12,9.783e-05,2]
[346589138,1735119047205,-500.0,9.783e-05,2]
[346589139,1735119047214,-1467.62,9.783e-05,2]
[346589140,1735119047223,-500.0,9.783e-05,2]
[346589141,1735119047231,-500.0,9.783e-05,2]
[346589142,1735119047240,-500.0,9.783e-05,2]
[346589143,1735119047249,-500.0,9.783e-05,2]
[346589144,1735119047258,-500.0,9.783e-05,2]
[346589145,1735119047267,-2079.23,9.783e-05,2]
[346589146,1735119047276,-500.0,9.783e-05,2]
[346589147,1735119047285,-500.0,9.783e-05,2]
[346589148,1735119047294,-1153.77,9.783e-05,2]
[346589149,1735119047303,-500.0,9.783e-05,2]
[346589150,1735119047312,-3709.98,9.783e-05,2]
[346589151,1735119047321,-500.0,9.783e-05,2]
[346589152,1735119047330,-500.0,9.783e-05,2]
[346589153,1735119047339,-500.0,9.783e-05,2]
[346589154,1735119047347,-851.76,9.783e-05,2]
[346589155,1735119047356,-524.15,9.783e-05,2]
[346589156,1735119047365,-1618.72,9.783e-05,2]
[346589157,1735119047374,-500.0,9.783e-05,2]
[346589158,1735119047383,-1645.68,9.783e-05,2]
[346589159,1735119047393,-500.0,9.783e-05,2]
[346589160,1735119047402,-697.46,9.783e-05,2]
[346589161,1735119047411,-1113.1,9.783e-05,2]
[346589162,1735119047422,-501.94989201,9.783e-05,2]
[346589163,1735119047431,-500.0,9.783e-05,2]
[346589164,1735119047440,-1068.97,9.783e-05,2]
[346589165,1735119047449,-500.0,9.783e-05,2]
[346589166,1735119047458,-1575.31,9.783e-05,2]
[346589167,1735119047467,-500.0,9.783e-05,2]
[346589168,1735119047476,-500.0,9.783e-05,2]
[346589169,1735119047485,-500.0,9.783e-05,2]
[346589170,1735119047494,-500.0,9.783e-05,2]
[346589171,1735119047503,-500.0,9.783e-05,2]
[346589172,1735119047512,-606.64,9.783e-05,2]
[346589173,1735119047521,-500.0,9.783e-05,2]
[346589174,1735119047532,-716.48,9.783e-05,2]
[346589175,1735119047542,-4001.65,9.783e-05,2]
[346589176,1735119047551,-500.0,9.783e-05,2]
[346589177,1735119047560,-500.0,9.783e-05,2]
[346589178,1735119047569,-2280.47,9.783e-05,2]
[346589179,1735119047581,-500.0,9.783e-05,2]
[346589180,1735119047590,-653.08,9.783e-05,2]
[346589181,1735119047600,-506.16083966,9.783e-05,2]
[346589182,1735119047609,-3840.91,9.783e-05,2]
[346589183,1735119047619,-500.0,9.783e-05,2]
[346589184,1735119047628,-1466.35,9.783e-05,2]
[346589185,1735119047637,-500.0,9.783e-05,2]
[346589186,1735119047646,-1146.87,9.783e-05,2]
[346589187,1735119047655,-500.0,9.783e-05,2]
[346589188,1735119047665,-3663.23,9.783e-05,2]
[346589189,1735119047675,-500.0,9.783e-05,2]
[346589190,1735119047687,-1109.38,9.783e-05,2]
[346589191,1735119047697,-1304.01,9.783e-05,2]
[346589192,1735119047706,-500.0,9.783e-05,2]
[346589193,1735119047715,-4137.97,9.783e-05,2]
[346589194,1735119047724,-1092.52,9.783e-05,2]
[346589195,1735119047734,-1813.99,9.783e-05,2]
[346589196,1735119047743,-500.0,9.783e-05,2]
[346589197,1735119047752,-500.0,9.783e-05,2]
[346589198,1735119047762,-1065.66,9.783e-05,2]
[346589199,1735119047771,-775.25,9.783e-05,2]
[346589200,1735119047780,-500.0,9.783e-05,2]
[346589201,1735119047789,-1678.92,9.783e-05,2]
[346589202,1735119047798,-1678.92,9.783e-05,2]
[346589203,1735119047808,-1678.92,9.783e-05,2]
[346589204,1735119047817,-500.0,9.783e-05,2]
[346589205,1735119047826,-2337.14,9.783e-05,2]
[346589206,1735119047835,-500.0,9.783e-05,2]
[346589207,1735119047844,-500.0,9.783e-05,2]
[346589208,1735119047853,-500.0,9.783e-05,2]
[346589209,1735119047862,-5000.0,9.783e-05,2]